bitfinex/quotes_SOLUSD_20241008
["timestamp","ask_amount","ask_price","bid_price","bid_amount"]
[1728354765292,0.25098,144.48,144.42,6.9241]
[1728354765493,6.9219,144.47,144.42,6.9241]
[1728354766384,6.9219,144.47,144.43,6.9236]
[1728354767308,6.9219,144.47,144.41,21.7417]
[1728354767489,6.9219,144.47,144.42,6.9241]
[1728354769009,6.9213,144.48,144.44,6.9232]
[1728354772195,0.25098,144.5,144.44,6.9232]
[1728354772384,6.9208,144.5,144.45,6.9226]
[1728354772591,6.9208,144.5,144.46,6.9222]
[1728354773688,10.77455702,144.52,144.46,6.9222]
[1728354773902,6.92,144.51,144.47,23.0269]
[1728354775608,6.92,144.51,144.47,16.1052]
[1728354776299,6.9213,144.49,144.47,16.1052]
[1728354776514,6.9213,144.48,144.47,16.1052]
[1728354777014,6.9213,144.48,144.44,15.425]
[1728354777385,6.9219,144.47,144.44,15.425]
[1728354777584,6.9228,144.45,144.44,15.425]
[1728354777913,6.9228,144.45,144.41,23.7167]
[1728354777914,6.9228,144.45,144.41,40.0284]
[1728354778614,0.12549,144.47,144.41,40.0284]
[1728354778817,6.9223,144.46,144.42,6.9242]
[1728354778991,6.9223,144.46,144.41,46.953]
[1728354780500,6.9218,144.47,144.43,6.9237]
[1728354781496,6.9214,144.48,144.44,6.9231]
[1728354783216,6.921,144.49,144.44,6.9231]
[1728354786222,20.0,144.51,144.43,17.3089]
[1728354786722,6.9209,144.49,144.45,6.9227]
[1728354787921,6.9209,144.49,144.44,6.9232]
[1728354789921,6.9214,144.48,144.44,6.9232]
[1728354790720,20.0,144.49,144.41,22.7173]
[1728354790921,6.9222,144.47,144.42,6.9241]
[1728354791131,0.25098,144.48,144.42,6.9241]
[1728354791307,6.922,144.47,144.42,6.9241]
[1728354791509,6.9223,144.46,144.42,6.9241]
[1728354792112,6.9223,144.46,144.41,35.6108502]
[1728354792113,0.25098,144.49,144.41,35.6108502]
[1728354792316,6.9229,144.45,144.41,29.6418]
[1728354798411,6.9224,144.46,144.41,29.6418]
[1728354800125,6.9218,144.47,144.41,35.6108502]
[1728354800443,20.0,144.51,144.41,35.6108502]
[1728354800444,16.06406354,144.59,144.48,15.5634]
[1728354800764,6.9161,144.59,144.54,12.8935502]
[1728354800930,6.9161,144.59,144.55,22.2987]
[1728354800931,6.9164,144.59,144.55,22.2987]
[1728354801249,40.4306,144.65,144.55,22.2987]
[1728354801250,17.44906059,144.63,144.55,22.2987]
[1728354801420,20.38148079,144.62,144.55,22.2987]
[1728354801620,20.38148079,144.62,144.56,12.8935502]
[1728354802121,6.9145,144.63,144.56,12.8935502]
[1728354802438,6.9145,144.63,144.57,1.38330654]
[1728354802639,6.9136,144.65,144.57,1.38330654]
[1728354802939,6.9136,144.65,144.56,20.10488728]
[1728354803123,0.815711,144.67,144.55,22.2987]
[1728354803329,6.9162,144.59,144.55,22.2987]
[1728354803724,6.9153,144.61,144.55,22.2987]
[1728354804442,20.12549,144.6,144.55,22.2987]
[1728354804642,20.0,144.6,144.55,22.2987]
[1728354804846,0.25098,144.61,144.55,29.2165]
[1728354805143,19.16444478,144.66,144.56,17.2931]
[1728354805340,6.9137,144.64,144.58,6.9161]
[1728354805542,19.16444478,144.66,144.55,22.2987]
[1728354806043,6.9152,144.61,144.55,29.2166]
[1728354806237,20.0,144.62,144.56,6.9173]
[1728354807062,7.03979,144.63,144.55,39.5936]
[1728354807269,0.12549,144.62,144.57,6.917]
[1728354808440,6.9143,144.63,144.57,6.917]
[1728354808760,6.9143,144.63,144.58,6.9165]
[1728354808964,6.9143,144.63,144.57,6.917]
[1728354809447,0.12549,144.64,144.57,6.917]
[1728354809650,6.9148,144.62,144.57,6.917]
[1728354813065,0.12549,144.64,144.55,59.69848728]
[1728354813066,20.0,144.63,144.55,39.5936]
[1728354813269,6.9161,144.59,144.55,39.5936]
[1728354813457,24.027864,144.64,144.55,22.2987]
[1728354813669,6.9166,144.58,144.55,22.2987]
[1728354814550,0.12549,144.61,144.55,22.2987]
[1728354814857,6.9162,144.59,144.55,22.2987]
[1728354817367,0.12549,144.61,144.55,22.2987]
[1728354817569,17.2897,144.6,144.51,23.0289]
[1728354817747,6.919,144.53,144.51,23.0289]
[1728354818081,6.9185,144.54,144.51,23.0289]
[1728354818245,6.9181,144.55,144.51,23.0289]
[1728354820189,6.9186,144.54,144.51,23.0289]
[1728354820392,6.919,144.53,144.51,23.0289]
[1728354822686,6.919,144.53,144.49,17.3016]
[1728354822687,0.12549,144.53,144.48,15.5289]
[1728354822879,6.9204,144.5,144.48,15.5289]
[1728354823966,6.9199,144.51,144.48,15.5289]
[1728354824395,24.027864,144.54,144.48,15.5289]
[1728354824690,0.12549,144.54,144.48,15.5289]
[1728354824889,20.0,144.52,144.48,22.45]
[1728354826302,6.9194,144.52,144.48,22.45]
[1728354829389,7.16948,144.54,144.49,8.30450596]
[1728354829693,20.0,144.53,144.49,8.30450596]
[1728354830175,20.0,144.53,144.49,6.9204]
[1728354830890,20.0,144.53,144.5,1.38395843]
[1728354831092,20.0,144.53,144.49,6.9204]
[1728354831772,20.0,144.53,144.48,32.8314]
[1728354831973,20.0,144.53,144.5,6.9203]
[1728354832688,20.0,144.57,144.5,6.9203]
[1728354832996,6.9181,144.55,144.51,6.9197]
[1728354839403,20.0,144.57,144.49,12.88096376]
[1728354839597,20.0,144.57,144.53,6.9188]
[1728354839898,6.9185,144.54,144.49,24.2221]
[1728354841073,6.918,144.55,144.51,6.9198]
[1728354841275,6.918,144.55,144.5,6.9203]
[1728354841991,0.25098,144.56,144.5,6.9203]
[1728354842209,6.9185,144.54,144.5,6.9203]
[1728354842616,44.027864,144.56,144.48,22.4501]
[1728354842906,6.9195,144.52,144.48,22.4501]
[1728354843284,20.0,144.55,144.48,15.5289]
[1728354843614,24.027864,144.56,144.48,15.5289]
[1728354843912,6.9195,144.52,144.48,15.5289]
[1728354844086,6.919,144.53,144.48,22.45]
[1728354844289,6.919,144.53,144.49,6.9208]
[1728354845714,6.9186,144.54,144.49,6.9208]
[1728354846002,6.9186,144.54,144.5,6.9203]
[1728354847290,20.0,144.58,144.5,17.3003]
[1728354847505,20.0,144.55,144.52,6.9192]
[1728354847907,6.9176,144.56,144.52,6.9192]
[1728354849214,0.12549,144.57,144.5,24.2206]
[1728354849385,20.25098,144.57,144.5,17.3003]
[1728354849587,6.9194,144.52,144.48,35.33106376]
[1728354849784,6.9189,144.54,144.49,6.9205]
[1728354850204,24.027864,144.56,144.48,28.40986376]
[1728354850404,6.9195,144.52,144.48,22.4501]
[1728354850911,6.9205,144.5,144.48,15.5289]
[1728354852593,6.9214,144.48,144.44,33.7186]
[1728354854101,6.9214,144.48,144.44,40.6415]
[1728354856333,16.2032,144.56,144.46,20.1437299]
[1728354856622,7.14996823,144.58,144.49,15.0809]
[1728354856799,7.14996823,144.58,144.52,6.9192]
[1728354857166,7.14996823,144.58,144.55,6.9178]
[1728354857339,7.14996823,144.58,144.56,6.9175]
[1728354857651,7.14996823,144.58,144.55,6.918]
[1728354857826,7.14996823,144.58,144.54,17.2959]
[1728354858024,7.14996823,144.58,144.55,6.9175]
[1728354858229,7.14996823,144.58,144.56,6.9174]
[1728354858647,28.2765,144.63,144.56,6.9174]
[1728354858827,21.3623,144.63,144.55,6.9179]
[1728354859243,6.9147,144.62,144.55,6.9179]
[1728354859630,0.25098,144.61,144.55,6.9179]
[1728354860141,6.9167,144.58,144.52,6.9194]
[1728354860329,0.12549,144.59,144.51,17.2996]
[1728354860535,7.16728,144.59,144.53,6.9189]
[1728354860743,7.04179,144.59,144.53,6.9189]
[1728354862256,0.12549,144.59,144.54,6.9184]
[1728354873363,0.12549,144.59,144.55,6.9176]
[1728354875356,6.9157,144.6,144.55,6.9176]
[1728354875554,6.9157,144.6,144.56,6.9175]
[1728354882674,0.12549,144.61,144.54,1.3833464]
[1728354882978,6.9157,144.6,144.55,6.9179]
[1728354883666,6.9161,144.59,144.54,6.9183]
[1728354884766,0.12549,144.61,144.53,30.1703053]
[1728354884951,6.9157,144.6,144.53,30.1703053]
[1728354885151,6.9157,144.6,144.56,6.9174]
[1728354886969,7.04069,144.61,144.56,6.9174]
[1728354888271,0.12549,144.61,144.56,6.9174]
[1728354888472,6.9156,144.6,144.56,6.9174]
[1728354890256,6.9161,144.59,144.55,17.2942]
[1728354890474,0.12549,144.61,144.55,17.2942]
[1728354890680,6.9156,144.6,144.55,24.2121]
[1728354895882,0.12549,144.61,144.56,1.38332233]
[1728354896088,20.12549,144.62,144.55,30.1679053]
[1728354896273,6.9161,144.59,144.55,24.2121]
[1728354897569,6.9156,144.6,144.55,24.2121]
[1728354898484,6.9156,144.6,144.56,6.9175]
[1728354901088,0.12549,144.59,144.55,17.2942]
[1728354901260,24.027864,144.59,144.49,16.1834]
[1728354901468,6.918,144.55,144.5,6.9202]
[1728354901780,6.9176,144.56,144.51,6.9198]
[1728354901987,6.9171,144.57,144.52,6.9191]
[1728354903194,14.05823303,144.6,144.53,17.2966]
[1728354903371,6.9148,144.62,144.57,6.9169]
[1728354903687,21.3623,144.63,144.57,6.9169]
[1728354903688,6.9151,144.61,144.57,6.9169]
[1728354903988,6.9147,144.62,144.57,6.9169]
[1728354904187,21.3623,144.63,144.57,6.9169]
[1728354904403,6.9151,144.61,144.57,6.9169]
[1728354908082,21.3623,144.63,144.57,6.9169]
[1728354908284,22.0503,144.63,144.58,6.9162]
[1728354909586,0.25098,144.62,144.57,17.2921]
[1728354909792,6.9163,144.59,144.55,15.8885]
[1728354909972,6.9163,144.59,144.54,24.214]
[1728354910486,24.027864,144.62,144.54,17.2957]
[1728354910696,6.9156,144.6,144.55,6.9176]
[1728354912578,6.9156,144.6,144.56,1.38328143]
[1728354912778,6.9156,144.6,144.56,6.9173]
[1728354913391,6.9152,144.61,144.57,6.917]
[1728354913595,6.9152,144.61,144.56,6.9174]
[1728354913977,6.9152,144.61,144.57,1.38322437]
[1728354914401,6.9152,144.61,144.56,6.9174]
[1728354914909,6.9156,144.6,144.56,6.9174]
[1728354916495,6.9152,144.61,144.57,1.38326536]
[1728354916993,6.9152,144.61,144.56,6.9174]
[1728354917582,6.9157,144.6,144.55,6.9179]
[1728354917903,6.5492,144.61,144.51,46.0610053]
[1728354918068,6.9172,144.57,144.52,6.9192]
[1728354918269,6.9172,144.57,144.53,6.9189]
[1728354918681,15.73129,144.58,144.49,6.4528]
[1728354918977,6.9193,144.53,144.48,24.224]
[1728354919193,6.9197,144.52,144.48,17.3028]
[1728354919383,0.12549,144.54,144.46,6.9218]
[1728354919678,6.9203,144.51,144.46,6.9218]
[1728354920403,6.9203,144.51,144.45,32.9895]
[1728354920404,0.12549,144.49,144.42,17.3103]
[1728354920580,0.12549,144.5,144.43,12.8737053]
[1728354920782,6.9203,144.51,144.45,6.9224]
[1728354920979,23.1185,144.52,144.47,6.9217]
[1728354921179,7.04539,144.51,144.46,24.2269]
[1728354921496,6.92,144.51,144.46,25.6111647]
[1728354921995,6.92,144.51,144.46,24.2269]
[1728354922397,6.9204,144.5,144.45,6.9227]
[1728354922583,24.027864,144.51,144.43,30.1828053]
[1728354922775,6.9205,144.5,144.45,6.9223]
[1728354923000,6.9205,144.5,144.43,30.1828053]
[1728354923204,7.04539,144.51,144.46,6.9223]
[1728354923494,16.199,144.52,144.45,30.1798053]
[1728354923801,16.199,144.52,144.45,17.3061]
[1728354924097,16.199,144.52,144.45,30.1798053]
[1728354925008,0.25098,144.54,144.47,12.8737053]
[1728354925183,6.9186,144.54,144.49,6.9208]
[1728354925687,6.9186,144.54,144.5,6.9202]
[1728354926001,0.25098,144.55,144.5,17.3001]
[1728354926396,7.16908,144.55,144.51,6.9195]
[1728354926794,7.16908,144.55,144.5,24.2203]
[1728354927392,6.9187,144.54,144.5,17.3001]
[1728354929795,6.9187,144.54,144.5,24.2205]
[1728354930303,22.503,144.56,144.5,17.3001]
[1728354930602,23.3889,144.56,144.51,8.30324405]
[1728354930902,0.12549,144.57,144.5,30.1738053]
[1728354930903,6.9174,144.57,144.5,30.1738053]
[1728354931086,6.9174,144.57,144.53,6.9189]
[1728354931883,6.9174,144.57,144.52,6.9193]
[1728354932499,24.027864,144.58,144.5,30.1738053]
[1728354932699,0.25098,144.58,144.55,6.9176]
[1728354932977,0.25098,144.58,144.54,17.2954]
[1728354932978,13.2202,144.59,144.54,24.2137]
[1728354935297,6.9161,144.59,144.55,6.9178]
[1728354936408,23.4878,144.6,144.56,6.9174]
[1728354936591,30.79328391,144.63,144.56,8.30073163]
[1728354936800,6.9155,144.61,144.56,8.30073163]
[1728354937002,7.15718391,144.63,144.56,12.8737053]
[1728354937194,23.2929,144.64,144.59,6.9159]
[1728354937511,16.3789,144.64,144.59,6.9159]
[1728354937707,6.9142,144.63,144.59,6.9159]
[1728354938212,6.9156,144.61,144.56,6.9173]
[1728354938409,6.9156,144.61,144.57,6.9169]
[1728354940519,6.9156,144.61,144.57,8.30011314]
[1728354940695,6.9156,144.61,144.57,6.9169]
[1728354940895,24.027864,144.63,144.56,17.2934]
[1728354941092,6.9171,144.57,144.53,24.2158]
[1728354941308,6.9171,144.57,144.53,17.2969]
[1728354941496,6.9176,144.56,144.51,12.8737053]
[1728354941699,6.9176,144.56,144.51,6.9198]
[1728354941905,6.9181,144.55,144.51,6.9198]
[1728354942416,6.9195,144.52,144.48,6.9211]
[1728354942716,6.919,144.53,144.48,6.9211]
[1728354942897,6.9185,144.54,144.49,8.30436403]
[1728354943105,24.027864,144.57,144.49,17.3012]
[1728354943315,6.9179,144.56,144.51,6.9197]
[1728354943696,6.9181,144.55,144.5,6.9203]
[1728354944310,6.9181,144.55,144.5,8.30413171]
[1728354944627,6.9175,144.56,144.51,6.9198]
[1728354945610,6.9175,144.56,144.5,1.383765]
[1728354945816,7.16808,144.57,144.52,6.9193]
[1728354946004,0.12549,144.57,144.51,17.2991]
[1728354946197,6.916,144.6,144.55,6.918]
[1728354946403,22.2265,144.61,144.53,17.2962]
[1728354946615,6.9172,144.57,144.53,17.2962]
[1728354950019,22.2265,144.61,144.53,17.2962]
[1728354950209,24.027864,144.6,144.54,1.38351329]
[1728354950615,24.027864,144.6,144.53,17.2962]
[1728354951019,6.9161,144.59,144.54,6.918]
[1728354951528,6.9177,144.56,144.52,6.9193]
[1728354951734,6.9172,144.57,144.53,6.9188]
[1728354952436,6.9172,144.57,144.53,8.30236409]
[1728354953130,24.027864,144.6,144.53,8.30236409]
[1728354953334,6.9166,144.58,144.54,6.9183]
[1728354953523,6.9162,144.59,144.54,6.9183]
[1728354955237,7.16658,144.6,144.54,17.2957]
[1728354955441,7.16658,144.6,144.55,1.38336961]
[1728354955621,0.25098,144.6,144.56,6.9171]
[1728354956340,7.04129,144.6,144.56,6.9171]
[1728354958918,29.1417,144.61,144.57,1.38331899]
[1728354959119,29.1417,144.61,144.56,6.9171]
[1728354960750,6.9158,144.6,144.55,6.9178]
[1728354961625,6.9158,144.6,144.54,17.2957]
[1728354961831,15.8608,144.61,144.58,6.9163]
[1728354962044,6.9148,144.62,144.58,6.9163]
[1728354962337,6.9138,144.64,144.59,6.9159]
[1728354963324,6.9143,144.63,144.59,6.9159]
[1728354964718,24.027864,144.64,144.55,17.2941]
[1728354964935,6.9166,144.58,144.55,17.2941]
[1728354965151,6.9165,144.59,144.55,17.2941]
[1728354965523,24.027864,144.62,144.52,33.4483]
[1728354965850,6.917,144.57,144.52,17.2979]
[1728354966140,6.9167,144.58,144.52,17.2979]
[1728354966446,7.04109,144.6,144.56,6.9175]
[1728354967442,6.9156,144.6,144.56,6.9175]
[1728354967750,7.04029,144.62,144.57,8.30019414]
[1728354968247,7.04029,144.62,144.57,6.917]
[1728354968547,7.04029,144.62,144.56,17.2931]
[1728354968548,0.25098,144.63,144.56,17.2931]
[1728354968736,24.027864,144.63,144.56,17.2931]
[1728354969625,6.9162,144.59,144.54,6.9181]
[1728354969829,6.9162,144.59,144.55,6.9179]
[1728354972754,24.027864,144.61,144.55,6.9179]
[1728354972925,6.9157,144.6,144.56,6.9174]
[1728354973339,6.9157,144.6,144.55,24.2125]
[1728354974055,0.12549,144.61,144.55,24.2125]
[1728354974233,6.9161,144.59,144.55,24.2125]
[1728354974754,6.9174,144.57,144.52,24.217]
[1728354975053,6.9166,144.58,144.54,6.9184]
[1728354975236,6.9171,144.57,144.53,6.9189]
[1728354975438,6.9166,144.58,144.54,6.9183]
[1728354976151,6.3087,144.59,144.52,17.2978]
[1728354976457,0.12549,144.58,144.52,17.2978]
[1728354976751,6.9174,144.57,144.53,6.9188]
[1728354977233,6.9165,144.58,144.54,8.30190722]
[1728354977430,7.04169,144.59,144.55,6.9179]
[1728354978356,6.9162,144.59,144.55,6.9179]
[1728354978555,22.179,144.6,144.55,6.9179]
[1728354980459,22.179,144.6,144.54,17.2959]
[1728354980460,15.2633,144.6,144.54,17.2959]
[1728354980660,6.9155,144.61,144.56,6.9172]
[1728354981180,6.9147,144.62,144.58,6.9164]
[1728354982195,15.3965,144.64,144.58,17.291]
[1728354982963,15.3965,144.64,144.6,17.2885]
[1728354983459,6.9132,144.65,144.6,17.2885]
[1728354983666,13.3383,144.66,144.61,6.9149]
[1728354983841,6.9128,144.66,144.61,8.2977055]
[1728354984167,7.728011,144.67,144.61,12.87406207]
[1728354984459,7.728011,144.67,144.62,6.9145]
[1728354989393,7.728011,144.67,144.63,1.38266451]
[1728354989890,7.728011,144.67,144.62,6.9145]
[1728354991867,7.728011,144.67,144.63,1.38265617]
[1728354993897,7.728011,144.67,144.62,6.9145]
[1728354994082,0.815711,144.67,144.61,6.9149]
[1728354994967,6.9133,144.65,144.61,6.9149]
[1728354995380,6.9127,144.66,144.62,1.38275549]
[1728354995599,6.9127,144.66,144.62,8.29735549]
[1728354996092,6.9127,144.66,144.62,6.9146]
[1728355002186,7.728011,144.67,144.63,6.9141]
[1728355002385,6.9127,144.66,144.62,24.2005]
[1728355004481,0.815711,144.67,144.62,17.286]
[1728355004701,7.728111,144.67,144.63,6.9141]
[1728355005976,7.728111,144.67,144.63,8.29667314]
[1728355006199,0.815711,144.67,144.64,17.284]
[1728355006391,0.815711,144.67,144.65,6.9128]
[1728355006594,0.815711,144.67,144.65,8.2952138]
[1728355006874,0.815711,144.67,144.66,8.29512932]
[1728355007077,0.815711,144.67,144.66,21.16919139]
[1728355007404,0.815711,144.67,144.66,37.38769139]
[1728355008592,2.5,144.7,144.69,6.9113]
[1728355008798,2.5,144.7,144.69,21.1672147]
[1728355009708,6.9065,144.79,144.7,20.0]
[1728355009880,0.815711,144.81,144.7,20.0]
[1728355009881,0.815711,144.81,144.75,6.9083]
[1728355010081,0.815711,144.81,144.75,1.38147066]
[1728355010293,0.815711,144.81,144.73,17.2725]
[1728355010294,6.9075,144.77,144.73,24.1818]
[1728355010500,0.815711,144.81,144.71,6.4846]
[1728355010700,6.9089,144.74,144.7,17.2766]
[1728355010908,6.9085,144.75,144.7,24.1873]
[1728355011107,6.9091,144.74,144.7,17.2766]
[1728355011912,6.9085,144.75,144.7,24.1873]
[1728355012994,6.9082,144.76,144.71,6.9102]
[1728355013390,6.9082,144.76,144.72,6.9098]
[1728355013602,6.9075,144.77,144.72,6.9098]
[1728355015912,24.027864,144.79,144.71,6.9102]
[1728355016105,24.027864,144.79,144.7,17.2766]
[1728355016288,24.027864,144.79,144.71,1.38192366]
[1728355016489,6.9084,144.75,144.7,24.187]
[1728355018219,24.027864,144.79,144.7,24.187]
[1728355018405,6.909,144.74,144.7,17.2766]
[1728355018920,6.909,144.74,144.7,18.65855884]
[1728355019493,6.9085,144.75,144.7,24.1873]
[1728355020298,17.2683,144.78,144.71,6.9101]
[1728355020499,6.9075,144.77,144.73,6.9092]
[1728355020714,6.9075,144.77,144.72,17.2741]
[1728355020715,6.9075,144.77,144.72,24.1838]
[1728355020901,6.9075,144.77,144.73,1.38177571]
[1728355021219,6.908,144.76,144.72,24.1838]
[1728355021393,6.908,144.76,144.72,17.2741]
[1728355022522,6.9076,144.77,144.72,24.1839]
[1728355024106,6.9071,144.78,144.73,8.29097249]
[1728355024616,6.9071,144.78,144.73,14.54217249]
[1728355024797,6.9071,144.78,144.74,1.38160397]
[1728355025217,0.25098,144.79,144.73,13.1605]
[1728355025405,6.9085,144.75,144.71,6.9102]
[1728355026102,6.9079,144.77,144.72,6.9098]
[1728355027119,0.25098,144.79,144.71,17.2755]
[1728355027312,7.03229,144.79,144.74,24.181]
[1728355027511,6.906,144.8,144.75,1.38147845]
[1728355027816,6.906,144.8,144.75,16.84157845]
[1728355028200,6.906,144.8,144.75,23.74987845]
[1728355028395,6.906,144.8,144.76,6.9078]
[1728355028706,6.906,144.8,144.77,1.38135682]
[1728355028911,6.906,144.8,144.76,6.9078]
[1728355030221,6.906,144.8,144.76,8.28915814]
[1728355030522,6.906,144.8,144.75,22.3684]
[1728355030817,6.906,144.8,144.75,23.74976102]
[1728355031319,7.721411,144.81,144.75,16.84146102]
[1728355031619,7.721411,144.81,144.77,6.9074]
[1728355031821,7.721411,144.81,144.77,8.28867663]
[1728355032298,0.815711,144.81,144.77,8.28867663]
[1728355033617,0.815711,144.81,144.76,17.2693]
[1728355033823,7.721411,144.81,144.77,6.9074]
[1728355034321,0.815711,144.81,144.76,17.2693]
[1728355034525,6.9066,144.79,144.75,22.3681]
[1728355035017,6.9062,144.8,144.76,6.9079]
[1728355035192,7.721311,144.81,144.77,8.28860871]
[1728355035392,7.721311,144.81,144.76,6.9079]
[1728355036203,6.9062,144.8,144.76,6.9079]
[1728355038026,0.25098,144.8,144.74,6.253]
[1728355038217,6.9074,144.78,144.73,6.909]
[1728355038411,6.9074,144.78,144.74,6.9089]
[1728355041630,0.25098,144.8,144.73,6.9092]
[1728355041815,6.9071,144.78,144.74,1.38154691]
[1728355042126,6.9075,144.77,144.73,6.9093]
[1728355042327,6.9071,144.78,144.74,1.38154997]
[1728355043219,6.908,144.76,144.72,24.1839]
[1728355043424,24.027864,144.8,144.72,24.1839]
[1728355043633,24.027864,144.8,144.74,6.9085]
[1728355044011,6.9069,144.79,144.74,6.9085]
[1728355044207,6.9071,144.78,144.74,6.9085]
[1728355044512,6.9071,144.78,144.73,1.38157289]
[1728355044513,6.9076,144.77,144.73,6.9092]
[1728355045113,6.9076,144.77,144.74,1.38157637]
[1728355045314,24.027864,144.8,144.74,1.38157637]
[1728355045652,6.9071,144.78,144.74,1.38157637]
[1728355045927,6.9071,144.78,144.74,8.29027637]
[1728355046132,6.9071,144.78,144.75,1.38153447]
[1728355047227,24.027864,144.8,144.72,17.2741]
[1728355047228,0.25098,144.8,144.72,17.2741]
[1728355047537,6.9075,144.77,144.73,6.9093]
[1728355048937,6.907,144.78,144.74,6.9087]
[1728355049109,6.9068,144.79,144.75,6.9083]
[1728355049637,6.9068,144.79,144.74,24.1807]
[1728355049822,6.9071,144.78,144.74,24.1807]
[1728355050017,6.9071,144.78,144.74,17.272]
[1728355050414,6.9076,144.77,144.74,17.272]
[1728355051235,6.9076,144.77,144.73,6.9092]
[1728355051758,0.25098,144.8,144.74,8.29036181]
[1728355051905,6.9066,144.79,144.74,21.13001151]
[1728355053306,6.9066,144.79,144.74,19.7484497]
[1728355054707,6.9066,144.79,144.74,6.9088]
[1728355055533,6.9071,144.78,144.74,6.9088]
[1728355058211,0.25098,144.78,144.71,22.3962]
[1728355058620,0.25098,144.78,144.72,6.9094]
[1728355058621,6.9076,144.77,144.72,6.9094]
[1728355060031,6.9076,144.77,144.73,1.38169965]
[1728355060228,6.9076,144.77,144.73,8.29099965]
[1728355060416,0.815711,144.81,144.73,1.38169965]
[1728355060624,0.815711,144.81,144.72,12.8396497]
[1728355060935,6.9073,144.78,144.74,24.1808]
[1728355062628,6.9073,144.78,144.75,1.38148047]
[1728355062835,6.9073,144.78,144.74,37.0204497]
[1728355063337,24.027864,144.8,144.71,22.3962]
[1728355063547,6.9084,144.76,144.72,6.9098]
[1728355063929,6.9084,144.76,144.71,46.5812]
[1728355064130,6.9084,144.76,144.72,6.9098]
[1728355064445,6.9084,144.76,144.73,1.38172432]
[1728355064631,41.293464,144.8,144.72,6.9098]
[1728355064949,6.9078,144.77,144.73,6.9093]
[1728355065338,0.12549,144.78,144.71,39.6711]
[1728355065645,6.9081,144.76,144.72,6.9095]
[1728355065944,17.2679,144.78,144.71,22.3962]
[1728355066148,24.027864,144.77,144.71,22.3962]
[1728355066324,6.9093,144.74,144.71,15.8384]
[1728355066530,6.9098,144.72,144.68,17.2785]
[1728355066849,17.2703,144.76,144.68,24.1902]
[1728355067022,0.12549,144.75,144.69,1.38204039]
[1728355067226,23.902374,144.77,144.71,6.9102]
[1728355067425,6.9085,144.75,144.71,8.29207274]
[1728355067952,6.909,144.74,144.7,17.2766]
[1728355068130,6.909,144.74,144.7,18.65858864]
[1728355068526,6.909,144.74,144.7,24.1873]
[1728355069137,0.12549,144.77,144.71,1.38186718]
[1728355069342,0.12549,144.77,144.71,14.22151688]
[1728355069343,0.25098,144.77,144.71,14.22151688]
[1728355069654,0.25098,144.77,144.71,12.8396497]
[1728355069843,6.9084,144.76,144.71,19.7498497]
[1728355070152,6.9085,144.75,144.71,6.9102]
[1728355072554,20.0,144.8,144.73,15.532]
[1728355072856,6.9085,144.75,144.73,15.532]
[1728355074154,6.9081,144.76,144.73,15.532]
[1728355074448,6.9074,144.78,144.73,23.82289028]
[1728355074779,6.9074,144.78,144.73,22.4412]
[1728355075273,0.25098,144.79,144.74,6.9087]
[1728355075274,6.9069,144.79,144.74,6.9087]
[1728355075442,6.9072,144.78,144.74,6.9087]
[1728355077058,0.12549,144.79,144.73,21.9912]
[1728355077230,6.9076,144.77,144.73,28.9004]
[1728355077429,6.9071,144.78,144.73,28.9004]
[1728355078156,24.027864,144.8,144.73,21.9912]
[1728355078460,6.9076,144.77,144.73,21.9912]
[1728355080059,24.027864,144.8,144.73,21.9912]
[1728355080060,6.9079,144.76,144.73,21.9912]